[Event "Titled Tuesday Blitz August 1 Early 2023"]
[White "Dinu, Dumitru-Daniel"]
[Black "Eggleston, Thomas A"]
[WhiteFideId "1208403"]
[BlackFideId "412139"]
[WhiteElo "2464"]
[BlackElo "2385"]
[Result "1-0"]
[Round "10"]
[TimeControl "180+1"]
[Date "2023.08.01"]
[WhiteClock "0:00:08"]
[BlackClock "0:00:00"]
[Board "115"]

1. d4 {[%clk 0:03:00]}  e6 {[%clk 0:02:31]} 2. c4 {[%clk 0:02:54]}  f5 {[%clk 0:02:31]} 3. Nc3 {[%clk 0:02:54]}  Nf6 {[%clk 0:02:32]} 4. Bf4 {[%clk 0:02:53]}  Bb4 {[%clk 0:02:32]} 5. e3 {[%clk 0:02:53]}  O-O {[%clk 0:02:31]} 6. Bd3 {[%clk 0:02:53]}  Bxc3+ {[%clk 0:02:29]} 7. bxc3 {[%clk 0:02:53]}  d6 {[%clk 0:02:29]} 8. Ne2 {[%clk 0:02:53]}  Qe7 {[%clk 0:02:29]} 9. O-O {[%clk 0:02:50]}  e5 {[%clk 0:02:28]} 10. Bg5 {[%clk 0:02:50]}  c5 {[%clk 0:02:28]} 11. Rb1 {[%clk 0:02:45]}  h6 {[%clk 0:02:25]} 12. Bxf6 {[%clk 0:02:44]}  Rxf6 {[%clk 0:02:19]} 13. e4 {[%clk 0:02:36]}  f4 {[%clk 0:02:19]} 14. f3 {[%clk 0:02:35]}  Nd7 {[%clk 0:02:14]} 15. Kh1 {[%clk 0:02:31]}  Nf8 {[%clk 0:02:14]} 16. Bc2 {[%clk 0:02:30]}  g5 {[%clk 0:02:14]} 17. Nc1 {[%clk 0:02:29]}  Be6 {[%clk 0:02:09]} 18. dxe5 {[%clk 0:02:24]}  dxe5 {[%clk 0:02:09]} 19. Bb3 {[%clk 0:02:25]}  Rd8 {[%clk 0:02:07]} 20. Qe2 {[%clk 0:02:25]}  b6 {[%clk 0:02:06]} 21. Nd3 {[%clk 0:02:25]}  Bc8 {[%clk 0:02:04]} 22. Rbd1 {[%clk 0:02:24]}  Ng6 {[%clk 0:02:01]} 23. Rd2 {[%clk 0:02:14]}  Rfd6 {[%clk 0:02:00]} 24. Rfd1 {[%clk 0:02:14]}  Qd7 {[%clk 0:01:58]} 25. h3 {[%clk 0:02:00]}  h5 {[%clk 0:01:41]} 26. Nxc5 {[%clk 0:01:41]}  Rxd2 {[%clk 0:01:40]} 27. Nxd7 {[%clk 0:01:41]}  Rxe2 {[%clk 0:01:39]} 28. Nf6+ {[%clk 0:01:41]}  Kf7 {[%clk 0:01:38]} 29. Rxd8 {[%clk 0:01:41]}  Be6 {[%clk 0:01:24]} 30. Nh7 {[%clk 0:01:20]}  Ke7 {[%clk 0:01:20]} 31. Rd1 {[%clk 0:01:16]}  g4 {[%clk 0:01:19]} 32. hxg4 {[%clk 0:01:10]}  hxg4 {[%clk 0:01:19]} 33. Ng5 {[%clk 0:01:08]}  Bg8 {[%clk 0:01:11]} 34. fxg4 {[%clk 0:01:03]}  Nh4 {[%clk 0:01:10]} 35. Nf3 {[%clk 0:00:59]}  Nxg2 {[%clk 0:01:01]} 36. Nxe5 {[%clk 0:00:42]}  Ne3 {[%clk 0:01:00]} 37. Ng6+ {[%clk 0:00:31]}  Kf6 {[%clk 0:00:53]} 38. Nxf4 {[%clk 0:00:21]}  Rf2 {[%clk 0:00:40]} 39. e5+ {[%clk 0:00:20]}  Kg7 {[%clk 0:00:33]} 40. Nh5+ {[%clk 0:00:20]}  Kh6 {[%clk 0:00:32]} 41. Re1 {[%clk 0:00:18]}  Nxg4 {[%clk 0:00:29]} 42. Nf6 {[%clk 0:00:13]}  Be6 {[%clk 0:00:18]} 43. Nxg4+ {[%clk 0:00:09]}  Bxg4 {[%clk 0:00:18]} 44. e6 {[%clk 0:00:09]}  Bf3+ {[%clk 0:00:16]} 45. Kg1 {[%clk 0:00:09]}  Rg2+ {[%clk 0:00:17]} 46. Kf1 {[%clk 0:00:10]}  Rg8 {[%clk 0:00:14]} 47. e7 {[%clk 0:00:08]}  Bc6 {[%clk 0:00:13]} 48. Re6+ {[%clk 0:00:07]}  Kg5 {[%clk 0:00:12]} 49. Rxc6 {[%clk 0:00:08]}  Re8 {[%clk 0:00:12]} 50. Rc7 {[%clk 0:00:08]}  Kf4 {[%clk 0:00:12]} 51. Ba4 {[%clk 0:00:08]}  Rh8 {[%clk 0:00:10]} 52. e8=Q {[%clk 0:00:08]}  Rh1+ {[%clk 0:00:08]} 53. Kg2 {[%clk 0:00:08]}  Rh2+ {[%clk 0:00:00]} 54. Kxh2 {[%clk 0:00:08]} 1-0


[Site "https://www.chess.com"]

[Event "Titled Tuesday Blitz August 1 Early 2023"]
[White "Buscar, Michael"]
[Black "Ronka, Erik"]
[WhiteFideId "2603616"]
[BlackFideId "505080"]
[WhiteElo "2383"]
[BlackElo "2462"]
[Result "1-0"]
[Round "10"]
[TimeControl "180+1"]
[Date "2023.08.01"]
[WhiteClock "0:00:15"]
[BlackClock "0:00:01"]
[Board "117"]

1. d4 {[%clk 0:02:53]}  d5 {[%clk 0:02:57]} 2. c4 {[%clk 0:02:53]}  c6 {[%clk 0:02:56]} 3. g3 {[%clk 0:02:52]}  Nf6 {[%clk 0:02:55]} 4. Bg2 {[%clk 0:02:52]}  Bg4 {[%clk 0:02:45]} 5. Nf3 {[%clk 0:02:46]}  e6 {[%clk 0:02:44]} 6. Nbd2 {[%clk 0:02:40]}  Nbd7 {[%clk 0:02:44]} 7. O-O {[%clk 0:02:40]}  Be7 {[%clk 0:02:44]} 8. Qb3 {[%clk 0:02:34]}  Qb6 {[%clk 0:02:43]} 9. c5 {[%clk 0:02:30]}  Qa6 {[%clk 0:02:44]} 10. Re1 {[%clk 0:02:25]}  b6 {[%clk 0:02:43]} 11. cxb6 {[%clk 0:02:24]}  axb6 {[%clk 0:02:44]} 12. Qc2 {[%clk 0:02:08]}  Rc8 {[%clk 0:02:41]} 13. Bf1 {[%clk 0:02:01]}  Qb7 {[%clk 0:02:40]} 14. a4 {[%clk 0:01:58]}  c5 {[%clk 0:02:35]} 15. dxc5 {[%clk 0:01:53]}  Bxc5 {[%clk 0:02:35]} 16. Qd1 {[%clk 0:01:30]}  O-O {[%clk 0:02:28]} 17. Nb3 {[%clk 0:01:25]}  Bd6 {[%clk 0:02:15]} 18. Be3 {[%clk 0:01:15]}  e5 {[%clk 0:02:14]} 19. Bg5 {[%clk 0:01:08]}  h6 {[%clk 0:02:10]} 20. Bxf6 {[%clk 0:01:02]}  Nxf6 {[%clk 0:02:11]} 21. Bg2 {[%clk 0:01:02]}  Bb4 {[%clk 0:02:08]} 22. Nxe5 {[%clk 0:00:56]}  Bxe1 {[%clk 0:02:06]} 23. Nxg4 {[%clk 0:00:56]}  Nxg4 {[%clk 0:02:04]} 24. Qxe1 {[%clk 0:00:54]}  Rfd8 {[%clk 0:01:59]} 25. Nd4 {[%clk 0:00:51]}  Nf6 {[%clk 0:01:58]} 26. b4 {[%clk 0:00:48]}  Ne4 {[%clk 0:01:56]} 27. e3 {[%clk 0:00:31]}  g6 {[%clk 0:01:51]} 28. a5 {[%clk 0:00:20]}  bxa5 {[%clk 0:01:50]} 29. Rxa5 {[%clk 0:00:18]}  Rb8 {[%clk 0:01:49]} 30. b5 {[%clk 0:00:18]}  Rdc8 {[%clk 0:01:48]} 31. Nc6 {[%clk 0:00:16]}  Ra8 {[%clk 0:01:48]} 32. Bxe4 {[%clk 0:00:14]}  dxe4 {[%clk 0:01:47]} 33. Qb4 {[%clk 0:00:14]}  Rxa5 {[%clk 0:01:39]} 34. Qxa5 {[%clk 0:00:13]}  Ra8 {[%clk 0:01:35]} 35. Qb4 {[%clk 0:00:12]}  Kh7 {[%clk 0:01:28]} 36. Qxe4 {[%clk 0:00:11]}  Qxb5 {[%clk 0:01:25]} 37. Nd4 {[%clk 0:00:11]}  Qe8 {[%clk 0:01:21]} 38. Qxe8 {[%clk 0:00:08]}  Rxe8 {[%clk 0:01:22]} 39. h4 {[%clk 0:00:08]}  Kg7 {[%clk 0:01:20]} 40. Kg2 {[%clk 0:00:09]}  Ra8 {[%clk 0:01:19]} 41. Kf3 {[%clk 0:00:09]}  f5 {[%clk 0:01:15]} 42. Ne2 {[%clk 0:00:10]}  Kf6 {[%clk 0:01:15]} 43. Nf4 {[%clk 0:00:10]}  Ra5 {[%clk 0:01:15]} 44. Ne2 {[%clk 0:00:09]}  g5 {[%clk 0:01:14]} 45. hxg5+ {[%clk 0:00:09]}  hxg5 {[%clk 0:01:15]} 46. g4 {[%clk 0:00:10]}  Ra4 {[%clk 0:00:52]} 47. gxf5 {[%clk 0:00:09]}  g4+ {[%clk 0:00:52]} 48. Kg3 {[%clk 0:00:09]}  Kxf5 {[%clk 0:00:53]} 49. Nd4+ {[%clk 0:00:09]}  Kg5 {[%clk 0:00:51]} 50. Ne6+ {[%clk 0:00:08]}  Kh5 {[%clk 0:00:47]} 51. Nf4+ {[%clk 0:00:08]}  Kg5 {[%clk 0:00:46]} 52. Ne6+ {[%clk 0:00:08]}  Kf6 {[%clk 0:00:44]} 53. Nf4 {[%clk 0:00:08]}  Kf5 {[%clk 0:00:43]} 54. Ne2 {[%clk 0:00:08]}  Ra1 {[%clk 0:00:39]} 55. Nd4+ {[%clk 0:00:08]}  Kg5 {[%clk 0:00:38]} 56. Ne6+ {[%clk 0:00:08]}  Kf6 {[%clk 0:00:38]} 57. Nd4 {[%clk 0:00:09]}  Rg1+ {[%clk 0:00:32]} 58. Kf4 {[%clk 0:00:08]}  Rf1 {[%clk 0:00:30]} 59. Kg3 {[%clk 0:00:07]}  Ke5 {[%clk 0:00:27]} 60. Ne2 {[%clk 0:00:07]}  Ke4 {[%clk 0:00:25]} 61. Nf4 {[%clk 0:00:07]}  Kf5 {[%clk 0:00:20]} 62. Ne2 {[%clk 0:00:07]}  Re1 {[%clk 0:00:19]} 63. Nd4+ {[%clk 0:00:05]}  Kg5 {[%clk 0:00:20]} 64. Kg2 {[%clk 0:00:06]}  Ra1 {[%clk 0:00:18]} 65. Ne6+ {[%clk 0:00:06]}  Kh4 {[%clk 0:00:17]} 66. Nd4 {[%clk 0:00:07]}  Ra2 {[%clk 0:00:16]} 67. Nf5+ {[%clk 0:00:07]}  Kg5 {[%clk 0:00:15]} 68. Ng3 {[%clk 0:00:08]}  Rb2 {[%clk 0:00:13]} 69. Ne4+ {[%clk 0:00:07]}  Kh4 {[%clk 0:00:12]} 70. Ng3 {[%clk 0:00:08]}  Rb4 {[%clk 0:00:11]} 71. Nf5+ {[%clk 0:00:08]}  Kg5 {[%clk 0:00:10]} 72. Ng3 {[%clk 0:00:09]}  Ra4 {[%clk 0:00:10]} 73. Nf1 {[%clk 0:00:09]}  Ra2 {[%clk 0:00:11]} 74. Ng3 {[%clk 0:00:09]}  Kf6 {[%clk 0:00:12]} 75. Ne4+ {[%clk 0:00:09]}  Ke5 {[%clk 0:00:12]} 76. Ng3 {[%clk 0:00:10]}  Kd5 {[%clk 0:00:13]} 77. Nf1 {[%clk 0:00:10]}  Kc4 {[%clk 0:00:13]} 78. Nh2 {[%clk 0:00:11]}  Kd3 {[%clk 0:00:06]} 79. Nxg4 {[%clk 0:00:11]}  Ke4 {[%clk 0:00:06]} 80. Kg3 {[%clk 0:00:10]}  Kf5 {[%clk 0:00:05]} 81. f3 {[%clk 0:00:10]}  Ra1 {[%clk 0:00:04]} 82. e4+ {[%clk 0:00:11]}  Kg5 {[%clk 0:00:04]} 83. Ne3 {[%clk 0:00:11]}  Rg1+ {[%clk 0:00:03]} 84. Kf2 {[%clk 0:00:11]}  Ra1 {[%clk 0:00:04]} 85. Nd5 {[%clk 0:00:11]}  Ra4 {[%clk 0:00:02]} 86. Ke3 {[%clk 0:00:11]}  Ra3+ {[%clk 0:00:03]} 87. Kf2 {[%clk 0:00:11]}  Ra4 {[%clk 0:00:03]} 88. Kg3 {[%clk 0:00:11]}  Ra3 {[%clk 0:00:03]} 89. Nc7 {[%clk 0:00:11]}  Rb3 {[%clk 0:00:04]} 90. Ne6+ {[%clk 0:00:11]}  Kf6 {[%clk 0:00:04]} 91. Nf4 {[%clk 0:00:11]}  Ke5 {[%clk 0:00:04]} 92. Nd5 {[%clk 0:00:12]}  Ra3 {[%clk 0:00:04]} 93. Ne7 {[%clk 0:00:11]}  Kd4 {[%clk 0:00:04]} 94. Nf5+ {[%clk 0:00:11]}  Ke5 {[%clk 0:00:04]} 95. Kg4 {[%clk 0:00:11]}  Ra8 {[%clk 0:00:04]} 96. Kg3 {[%clk 0:00:10]}  Kf6 {[%clk 0:00:05]} 97. Kf4 {[%clk 0:00:11]}  Ra4 {[%clk 0:00:05]} 98. Ne3 {[%clk 0:00:11]}  Ke6 {[%clk 0:00:04]} 99. Nd5 {[%clk 0:00:11]}  Rc4 {[%clk 0:00:04]} 100. Ne3 {[%clk 0:00:11]}  Ra4 {[%clk 0:00:03]} 101. Ng4 {[%clk 0:00:11]}  Kf7 {[%clk 0:00:02]} 102. Kf5 {[%clk 0:00:11]}  Ra3 {[%clk 0:00:03]} 103. f4 {[%clk 0:00:11]}  Ra5+ {[%clk 0:00:03]} 104. e5 {[%clk 0:00:12]}  Ke7 {[%clk 0:00:04]} 105. Nf6 {[%clk 0:00:12]}  Ra1 {[%clk 0:00:03]} 106. Ne4 {[%clk 0:00:13]}  Kf7 {[%clk 0:00:03]} 107. Nd6+ {[%clk 0:00:13]}  Ke7 {[%clk 0:00:04]} 108. Ne4 {[%clk 0:00:13]}  Rf1 {[%clk 0:00:04]} 109. Ng5 {[%clk 0:00:13]}  Rg1 {[%clk 0:00:04]} 110. Ke4 {[%clk 0:00:13]}  Re1+ {[%clk 0:00:04]} 111. Kf5 {[%clk 0:00:14]}  Rg1 {[%clk 0:00:05]} 112. Ne4 {[%clk 0:00:14]}  Re1 {[%clk 0:00:05]} 113. Nf6 {[%clk 0:00:14]}  Rf1 {[%clk 0:00:05]} 114. Nd5+ {[%clk 0:00:15]}  Kf7 {[%clk 0:00:06]} 115. Ne3 {[%clk 0:00:15]}  Re1 {[%clk 0:00:06]} 116. Ng4 {[%clk 0:00:15]}  Rg1 {[%clk 0:00:04]} 117. e6+ {[%clk 0:00:14]}  Ke7 {[%clk 0:00:05]} 118. Ne5 {[%clk 0:00:14]}  Re1 {[%clk 0:00:04]} 119. Ng6+ {[%clk 0:00:13]}  Kd6 {[%clk 0:00:05]} 120. Nf8 {[%clk 0:00:13]}  Ke7 {[%clk 0:00:05]} 121. Ng6+ {[%clk 0:00:13]}  Kd6 {[%clk 0:00:06]} 122. e7 {[%clk 0:00:14]}  Kd7 {[%clk 0:00:03]} 123. Kf6 {[%clk 0:00:14]}  Re6+ {[%clk 0:00:03]} 124. Kf7 {[%clk 0:00:14]}  Rxg6 {[%clk 0:00:03]} 125. Kxg6 {[%clk 0:00:14]}  Kxe7 {[%clk 0:00:03]} 126. f5 {[%clk 0:00:13]}  Kf8 {[%clk 0:00:04]} 127. Kf6 {[%clk 0:00:14]}  Ke8 {[%clk 0:00:04]} 128. Kg7 {[%clk 0:00:14]}  Kd7 {[%clk 0:00:01]} 129. f6 {[%clk 0:00:15]} 1-0


[Site "https://www.chess.com"]

[Event "Titled Tuesday Blitz August 1 Early 2023"]
[White "Harriott, Tyrell"]
[Black "chessmateto"]
[WhiteFideId "2086484"]
[WhiteElo "2425"]
[BlackElo "2459"]
[Result "0-1"]
[Round "10"]
[TimeControl "180+1"]
[Date "2023.08.01"]
[WhiteClock "0:00:04"]
[BlackClock "0:01:08"]
[Board "118"]

1. d4 {[%clk 0:02:51]}  d5 {[%clk 0:02:59]} 2. e3 {[%clk 0:02:44]}  Nf6 {[%clk 0:02:58]} 3. Bd3 {[%clk 0:02:43]}  c6 {[%clk 0:02:52]} 4. f4 {[%clk 0:02:42]}  g6 {[%clk 0:02:48]} 5. Nf3 {[%clk 0:02:42]}  Bg7 {[%clk 0:02:48]} 6. O-O {[%clk 0:02:41]}  Bf5 {[%clk 0:02:48]} 7. Nbd2 {[%clk 0:02:41]}  Bxd3 {[%clk 0:02:48]} 8. cxd3 {[%clk 0:02:40]}  O-O {[%clk 0:02:47]} 9. b3 {[%clk 0:02:37]}  Ng4 {[%clk 0:02:34]} 10. Qe1 {[%clk 0:02:35]}  c5 {[%clk 0:02:28]} 11. Ba3 {[%clk 0:02:32]}  cxd4 {[%clk 0:02:23]} 12. Nxd4 {[%clk 0:02:27]}  Nc6 {[%clk 0:02:22]} 13. Nxc6 {[%clk 0:02:20]}  bxc6 {[%clk 0:02:21]} 14. Rc1 {[%clk 0:02:20]}  Qa5 {[%clk 0:01:49]} 15. Bc5 {[%clk 0:02:02]}  Bc3 {[%clk 0:01:43]} 16. b4 {[%clk 0:01:27]}  Bxb4 {[%clk 0:01:43]} 17. Bxb4 {[%clk 0:01:24]}  Qxb4 {[%clk 0:01:43]} 18. Qe2 {[%clk 0:01:13]}  h5 {[%clk 0:01:28]} 19. Rxc6 {[%clk 0:01:05]}  Qa4 {[%clk 0:01:26]} 20. Rc7 {[%clk 0:00:57]}  Qxa2 {[%clk 0:01:19]} 21. h3 {[%clk 0:00:55]}  Nh6 {[%clk 0:01:11]} 22. Rxe7 {[%clk 0:00:53]}  Nf5 {[%clk 0:01:11]} 23. Re5 {[%clk 0:00:42]}  Ng3 {[%clk 0:01:10]} 24. Qf2 {[%clk 0:00:39]}  Nxf1 {[%clk 0:01:10]} 25. Kxf1 {[%clk 0:00:38]}  Rab8 {[%clk 0:01:10]} 26. g4 {[%clk 0:00:33]}  Rb2 {[%clk 0:01:09]} 27. Ke1 {[%clk 0:00:23]}  Rc8 {[%clk 0:01:09]} 28. gxh5 {[%clk 0:00:16]}  Rc1+ {[%clk 0:01:07]} 29. Ke2 {[%clk 0:00:14]}  Rxd2+ {[%clk 0:01:07]} 30. Kf3 {[%clk 0:00:14]}  Rxf2+ {[%clk 0:01:08]} 31. Kg4 {[%clk 0:00:14]}  Rg1+ {[%clk 0:01:08]} 32. Kh4 {[%clk 0:00:04]}  Rxf4+ {[%clk 0:01:08]} 0-1


[Site "https://www.chess.com"]

[Event "Titled Tuesday Blitz August 1 Early 2023"]
[White "Romero Pallares, Daniel"]
[Black "Antonio, Jorge Carlos"]
[WhiteFideId "32025637"]
[BlackFideId "113190"]
[WhiteElo "2455"]
[BlackElo "2330"]
[Result "1-0"]
[Round "10"]
[TimeControl "180+1"]
[Date "2023.08.01"]
[WhiteClock "0:01:31"]
[BlackClock "0:00:35"]
[Board "120"]

1. d4 {[%clk 0:02:59]}  d5 {[%clk 0:02:59]} 2. Bf4 {[%clk 0:02:58]}  c6 {[%clk 0:02:59]} 3. e3 {[%clk 0:02:57]}  g6 {[%clk 0:02:59]} 4. c4 {[%clk 0:02:57]}  Bg7 {[%clk 0:02:59]} 5. Nc3 {[%clk 0:02:58]}  Nf6 {[%clk 0:02:59]} 6. Qb3 {[%clk 0:02:58]}  Qb6 {[%clk 0:02:57]} 7. c5 {[%clk 0:02:59]}  Qxb3 {[%clk 0:02:56]} 8. axb3 {[%clk 0:02:59]}  O-O {[%clk 0:02:55]} 9. h3 {[%clk 0:03:00]}  b6 {[%clk 0:02:45]} 10. cxb6 {[%clk 0:02:58]}  Nbd7 {[%clk 0:02:33]} 11. bxa7 {[%clk 0:02:49]}  Bb7 {[%clk 0:02:23]} 12. Nf3 {[%clk 0:02:49]}  Ne4 {[%clk 0:02:15]} 13. Nxe4 {[%clk 0:02:36]}  dxe4 {[%clk 0:02:14]} 14. Ne5 {[%clk 0:02:36]}  Bxe5 {[%clk 0:02:06]} 15. Bxe5 {[%clk 0:02:35]}  f6 {[%clk 0:02:03]} 16. Bg3 {[%clk 0:02:34]}  c5 {[%clk 0:01:56]} 17. Bc4+ {[%clk 0:02:33]}  Kg7 {[%clk 0:01:54]} 18. Ke2 {[%clk 0:02:21]}  cxd4 {[%clk 0:01:54]} 19. exd4 {[%clk 0:02:21]}  f5 {[%clk 0:01:54]} 20. Bb5 {[%clk 0:02:08]}  Nb6 {[%clk 0:01:51]} 21. Be5+ {[%clk 0:02:07]}  Kh6 {[%clk 0:01:46]} 22. Rhc1 {[%clk 0:02:08]}  f4 {[%clk 0:01:39]} 23. Rc7 {[%clk 0:01:53]}  Bd5 {[%clk 0:01:35]} 24. Rxe7 {[%clk 0:01:50]}  Bxb3 {[%clk 0:01:27]} 25. Bg7+ {[%clk 0:01:48]}  Kh5 {[%clk 0:01:24]} 26. Bxf8 {[%clk 0:01:45]}  Rxf8 {[%clk 0:01:21]} 27. Re8 {[%clk 0:01:43]}  Rxe8 {[%clk 0:01:19]} 28. Bxe8 {[%clk 0:01:42]}  Bc4+ {[%clk 0:01:14]} 29. Ke1 {[%clk 0:01:40]}  Bd5 {[%clk 0:01:06]} 30. Ra6 {[%clk 0:01:39]}  Nc8 {[%clk 0:00:57]} 31. a8=Q {[%clk 0:01:37]}  Bxa8 {[%clk 0:00:56]} 32. Rxa8 {[%clk 0:01:38]}  Nd6 {[%clk 0:00:56]} 33. Bc6 {[%clk 0:01:35]}  g5 {[%clk 0:00:46]} 34. Rd8 {[%clk 0:01:33]}  Nf7 {[%clk 0:00:35]} 35. Be8 {[%clk 0:01:31]} 1-0


[Site "https://www.chess.com"]

[Event "Titled Tuesday Blitz August 1 Early 2023"]
[White "Warchol, Kamil"]
[Black "Khromkin, Andrey"]
[WhiteFideId "21858241"]
[BlackFideId "4154126"]
[WhiteElo "2290"]
[BlackElo "2451"]
[Result "1-0"]
[Round "10"]
[TimeControl "180+1"]
[Date "2023.08.01"]
[WhiteClock "0:00:02"]
[BlackClock "0:00:00"]
[Board "121"]

1. e4 {[%clk 0:02:57]}  c5 {[%clk 0:02:59]} 2. Nf3 {[%clk 0:02:56]}  Nc6 {[%clk 0:03:00]} 3. Bb5 {[%clk 0:02:56]}  g6 {[%clk 0:03:00]} 4. O-O {[%clk 0:02:55]}  Bg7 {[%clk 0:03:00]} 5. c3 {[%clk 0:02:54]}  Nf6 {[%clk 0:03:00]} 6. Re1 {[%clk 0:02:52]}  O-O {[%clk 0:02:59]} 7. d4 {[%clk 0:02:46]}  d5 {[%clk 0:02:58]} 8. e5 {[%clk 0:02:37]}  Ne4 {[%clk 0:02:58]} 9. Be3 {[%clk 0:02:28]}  cxd4 {[%clk 0:02:50]} 10. cxd4 {[%clk 0:02:26]}  Qb6 {[%clk 0:02:50]} 11. Bxc6 {[%clk 0:02:20]}  Qxc6 {[%clk 0:02:47]} 12. Qb3 {[%clk 0:02:11]}  Bf5 {[%clk 0:02:34]} 13. Nc3 {[%clk 0:02:06]}  Nxc3 {[%clk 0:02:33]} 14. Rac1 {[%clk 0:01:54]}  Qa4 {[%clk 0:02:20]} 15. Rxc3 {[%clk 0:01:49]}  Qxb3 {[%clk 0:02:20]} 16. Rxb3 {[%clk 0:01:49]}  b6 {[%clk 0:02:20]} 17. Rc3 {[%clk 0:01:48]}  Rfc8 {[%clk 0:02:20]} 18. Rec1 {[%clk 0:01:48]}  f6 {[%clk 0:02:11]} 19. exf6 {[%clk 0:01:41]}  exf6 {[%clk 0:02:07]} 20. Rc7 {[%clk 0:01:38]}  Bf8 {[%clk 0:02:00]} 21. Bf4 {[%clk 0:01:28]}  g5 {[%clk 0:01:54]} 22. Bg3 {[%clk 0:01:26]}  Rxc7 {[%clk 0:01:53]} 23. Rxc7 {[%clk 0:01:24]}  Rc8 {[%clk 0:01:54]} 24. Rxc8 {[%clk 0:01:16]}  Bxc8 {[%clk 0:01:53]} 25. Kf1 {[%clk 0:01:14]}  Kf7 {[%clk 0:01:52]} 26. Ke2 {[%clk 0:01:12]}  Ke6 {[%clk 0:01:50]} 27. Ne1 {[%clk 0:01:05]}  h5 {[%clk 0:01:45]} 28. f3 {[%clk 0:01:03]}  h4 {[%clk 0:01:43]} 29. Bf2 {[%clk 0:01:01]}  Bd6 {[%clk 0:01:41]} 30. h3 {[%clk 0:00:55]}  Ba6+ {[%clk 0:01:41]} 31. Nd3 {[%clk 0:00:52]}  Bf4 {[%clk 0:01:27]} 32. Be3 {[%clk 0:00:47]}  Kf5 {[%clk 0:01:19]} 33. Bf2 {[%clk 0:00:33]}  Bb5 {[%clk 0:00:58]} 34. b3 {[%clk 0:00:30]}  a5 {[%clk 0:00:58]} 35. Be1 {[%clk 0:00:27]}  Ke6 {[%clk 0:00:47]} 36. Bf2 {[%clk 0:00:24]}  Bd6 {[%clk 0:00:40]} 37. Kd2 {[%clk 0:00:22]}  f5 {[%clk 0:00:38]} 38. Be3 {[%clk 0:00:21]}  Kf6 {[%clk 0:00:32]} 39. Kc3 {[%clk 0:00:20]}  Kg6 {[%clk 0:00:29]} 40. Kd2 {[%clk 0:00:19]}  Kf6 {[%clk 0:00:26]} 41. Kc3 {[%clk 0:00:19]}  Kg6 {[%clk 0:00:20]} 42. Kd2 {[%clk 0:00:18]}  Kh5 {[%clk 0:00:20]} 43. a4 {[%clk 0:00:09]}  Ba6 {[%clk 0:00:18]} 44. Bf2 {[%clk 0:00:06]}  g4 {[%clk 0:00:16]} 45. hxg4+ {[%clk 0:00:06]}  fxg4 {[%clk 0:00:16]} 46. fxg4+ {[%clk 0:00:07]}  Kxg4 {[%clk 0:00:16]} 47. Ke2 {[%clk 0:00:07]}  Bf4 {[%clk 0:00:14]} 48. Bg1 {[%clk 0:00:07]}  Kg3 {[%clk 0:00:11]} 49. Bf2+ {[%clk 0:00:03]}  Kg4 {[%clk 0:00:09]} 50. Be1 {[%clk 0:00:04]}  Bg3 {[%clk 0:00:04]} 51. Bd2 {[%clk 0:00:03]}  Bd6 {[%clk 0:00:00]} 52. Ke3 {[%clk 0:00:02]} 1-0


[Site "https://www.chess.com"]

[Event "Titled Tuesday Blitz August 1 Early 2023"]
[White "Romero Arzuaga, Yudel"]
[Black "Hajiyev, Kanan"]
[WhiteFideId "3521010"]
[BlackFideId "13404148"]
[WhiteElo "2356"]
[BlackElo "2539"]
[Result "0-1"]
[Round "10"]
[TimeControl "180+1"]
[Date "2023.08.01"]
[WhiteClock "0:00:22"]
[BlackClock "0:01:26"]
[Board "128"]

1. d4 {[%clk 0:03:00]}  c6 {[%clk 0:03:00]} 2. Nf3 {[%clk 0:02:59]}  d5 {[%clk 0:03:01]} 3. Bf4 {[%clk 0:02:58]}  Nf6 {[%clk 0:03:01]} 4. e3 {[%clk 0:02:59]}  Bg4 {[%clk 0:03:00]} 5. c4 {[%clk 0:02:58]}  e6 {[%clk 0:03:00]} 6. Qb3 {[%clk 0:02:59]}  Qb6 {[%clk 0:03:00]} 7. c5 {[%clk 0:02:59]}  Qxb3 {[%clk 0:03:00]} 8. axb3 {[%clk 0:03:00]}  Nbd7 {[%clk 0:03:01]} 9. b4 {[%clk 0:02:58]}  Bxf3 {[%clk 0:03:02]} 10. gxf3 {[%clk 0:02:58]}  Be7 {[%clk 0:03:00]} 11. b5 {[%clk 0:02:57]}  Nh5 {[%clk 0:03:00]} 12. bxc6 {[%clk 0:02:55]}  bxc6 {[%clk 0:02:52]} 13. Bc7 {[%clk 0:02:55]}  Bd8 {[%clk 0:02:47]} 14. Bd6 {[%clk 0:02:52]}  Be7 {[%clk 0:02:46]} 15. Bxe7 {[%clk 0:02:44]}  Kxe7 {[%clk 0:02:46]} 16. b4 {[%clk 0:02:44]}  Rhb8 {[%clk 0:02:46]} 17. Ra4 {[%clk 0:02:41]}  a5 {[%clk 0:02:46]} 18. Nd2 {[%clk 0:02:28]}  axb4 {[%clk 0:02:44]} 19. Rxa8 {[%clk 0:02:28]}  Rxa8 {[%clk 0:02:45]} 20. Bd3 {[%clk 0:02:22]}  Ra1+ {[%clk 0:02:44]} 21. Bb1 {[%clk 0:02:22]}  e5 {[%clk 0:02:44]} 22. Ke2 {[%clk 0:02:22]}  exd4 {[%clk 0:02:43]} 23. exd4 {[%clk 0:02:22]}  Nf4+ {[%clk 0:02:44]} 24. Ke3 {[%clk 0:02:22]}  Ng2+ {[%clk 0:02:44]} 25. Kd3 {[%clk 0:02:19]}  g6 {[%clk 0:02:39]} 26. Kc2 {[%clk 0:02:09]}  Ra3 {[%clk 0:02:25]} 27. Kb2 {[%clk 0:01:58]}  Nf8 {[%clk 0:02:18]} 28. Bc2 {[%clk 0:01:45]}  Ne6 {[%clk 0:02:18]} 29. Nb3 {[%clk 0:01:41]}  Nh4 {[%clk 0:02:18]} 30. Bd1 {[%clk 0:01:35]}  Nf5 {[%clk 0:02:18]} 31. Re1 {[%clk 0:01:33]}  Kf6 {[%clk 0:02:17]} 32. h3 {[%clk 0:01:17]}  Nfxd4 {[%clk 0:02:14]} 33. Nxd4 {[%clk 0:01:16]}  Nxd4 {[%clk 0:02:15]} 34. Re8 {[%clk 0:01:16]}  Ra5 {[%clk 0:02:04]} 35. Rb8 {[%clk 0:01:11]}  b3 {[%clk 0:01:59]} 36. Kc3 {[%clk 0:01:10]}  Ke5 {[%clk 0:01:41]} 37. f4+ {[%clk 0:01:03]}  Ke4 {[%clk 0:01:41]} 38. Kb4 {[%clk 0:00:22]}  Ra1 {[%clk 0:01:26]} 0-1


[Site "https://www.chess.com"]